Cogmind - Beta 16 @@@ ROGUE MODE // 2025.12.26 @ 23:53:52 Player: Foolatea Result: Destroyed by W4-AUV(R) with Subdweller Beam Cannon Performance ------------- Evolutions (0) 0 Regions Visited (2) 400 Robots Destroyed (8) 40 Value Destroyed (144) 144 Prototype IDs (2) 40 Alien Tech Used (0) 0 Bonus (0) 0 TOTAL SCORE: 624 Bonus ------- None Cogmind --------- Core Integrity 0/250 Matter 270/300 Energy 95/250 System Corruption 0% Temperature Cool (9) Movement Walking (190) Ox1 Location -10/Subcaves Parts ------- > --- POWER (1) -------- Ion Engine > --- PROPULSION (2) --- Aluminum Leg Aluminum Leg > --- UTILITY (2) ------ Large Storage Unit Seismic Detector > --- WEAPON (2) ------- (None) > --- INVENTORY (15) --- Light Nuclear Core Improved Heat Sink Medium Battery (150) Large Matter Pod (150) Structural Scanner Seismic Detector ECM Suite Core Shielding Assault Rifle Datajack Maul Scrap Shield Fragment (32) Peak State ------------ > --- POWER ------------ Ion Engine > --- PROPULSION ------- Light Treads Light Treads > --- UTILITY ---------- Large Storage Unit Seismic Detector > --- WEAPON ----------- Grenade Launcher Mining Laser > --- INVENTORY -------- Ion Engine Light Nuclear Core Aluminum Leg Aluminum Leg Improved Heat Sink Medium Battery Large Matter Pod Structural Scanner Seismic Detector ECM Suite Core Shielding Assault Rifle Datajack Maul Scrap Shield Fragment [Rating: 9] Favorites ----------- Power Ion Engine Engine Ion Engine Propulsion Light Treads Treads Light Treads Leg Aluminum Leg Utility Seismic Detector Device Seismic Detector Storage Large Storage Unit Weapon Assault Rifle Ballistic Gun Assault Rifle Launcher Grenade Launcher Special Weapon Mining Laser Build | -11 -10 -10 ------- Run | Yrd Mat Sub Slots Evolved . | . . . Power . | . . . Propulsion . | . . . Utility . | . . . Weapon . | . . . Parts Attached 14 | 7 4 3 Power 2 | 1 . 1 Engine 2 | 1 . 1 Core . | . . . Reactor . | . . . Propulsion 4 | 2 . 2 Treads 2 | 2 . . Leg 2 | . . 2 Wheel . | . . . Hover . | . . . Flight . | . . . Utility 4 | 2 2 . Device 1 | 1 . . Storage 3 | 1 2 . Processor . | . . . Hackware . | . . . Protection . | . . . Artifact . | . . . Weapon 4 | 2 2 . Energy Gun . | . . . Energy Cannon . | . . . Ballistic Gun 2 | 2 . . Ballistic Cannon . | . . . Launcher 1 | . 1 . Special Weapon 1 | . 1 . Impact Weapon . | . . . Slashing Weapon . | . . . Piercing Weapon . | . . . Special Melee Weapon . | . . . Unidentified Prototypes . | . . . Parts Lost 4 | . . 4 Power 1 | . . 1 Propulsion 2 | . . 2 Utility . | . . . Weapon 1 | . . 1 Highest Loss Streak 4 | . . 4 To Critical Strikes . | . . . Average Backups 9 | 4 11 14 Power 1 | . 1 2 Propulsion 1 | 1 2 2 Utility 3 | . 5 7 Weapon 1 | 1 1 2 Tool/Special . | . . . Unused Backups 14 | . 4 10 Power 1 | . . 1 Propulsion . | . . . Utility 10 | . 3 7 Weapon 2 | . 1 1 Tool/Special 1 | . . 1 Average Slot Usage (%) 99 | . 100 94 Engine 14 | . 14 14 Treads 27 | . 28 25 Device 14 | . 14 14 Storage 14 | . 14 14 Ballistic Gun 16 | . 18 7 Launcher 5 | . 5 4 Special Weapon 5 | . 4 11 Peak Build Rating 9 | 7 8 9 Average Rating 7 | 6 7 7 On Entrance 5 | . 7 8 Avg Prop Armor Cover (%) . | . . . Naked Turns . | . . . Heaviest Build 31 | 14 31 30 Greatest Support 40 | 40 40 40 Greatest Overweight (x) 8 | . . 8 Average Overweight (x) . | . . . Largest Inventory Capacity 15 | 8 15 15 Average Capacity 11 | 7 13 15 Most Carried 15 | 5 14 15 Average Carried 9 | 4 11 14 Final Capacity 15 | 8 15 15 Final Carried 14 | 5 14 12 Class Distribution -------------------- 100% | Mutant Dominant Class ---------------- Mutant | -10/Materials Mutant | -10/Subcaves Resources | -11 -10 -10 ----------- Run | Yrd Mat Sub Matter Collected 706 | 306 400 . Remotely . | . . . Salvage Created 300 | 75 225 . Parts 19 | 6 13 . Haulers Intercepted 1 | . 1 . Recyclers Shooed 3 | 2 1 . Parts Field Recycled . | . . . Retrieved Matter . | . . . Parts Self-Destructed 4 | . . 4 Prevented . | . . . Parts Restored . | . . . Kills | -11 -10 -10 ------- Run | Yrd Mat Sub Combat Hostiles Destroyed 2 | . 2 . Guns 2 | . 2 . Classes Destroyed 5 | 2 3 . Tunneler 1 | 1 . . Hauler 1 | . 1 . Recycler 1 | 1 . . Watcher 3 | . 3 . Grunt 2 | . 2 . Best Kill Streak 2 | 2 2 . Combat Bots Only 1 | . 1 . Max Kills in Single Turn 1 | 1 1 . Gunslinging . | . . . Exploded . | . . . Melee . | . . . Uniques/NPCs Destroyed . | . . . Combat | -11 -10 -10 -------- Run | Yrd Mat Sub Hostile Shots Fired 58 | . 14 44 Missed 16 | . 6 10 Hits 42 | . 8 34 Projectile 42 | . 8 34 Damage Taken 878 | . 101 777 Core 251 | . 10 241 Absorbed by Shields . | . . . Core Remaining (%) 100 | 100 . . Volleys Fired 63 | 15 47 1 Largest 2 | 2 2 1 Hottest 100 | 40 100 100 Shots Fired 80 | 16 63 1 Gun 61 | 16 45 . Cannon . | . . . Launcher . | . . . Special 19 | . 18 1 Kinetic 61 | 16 45 . Thermal 19 | . 18 1 Explosive . | . . . Electromagnetic . | . . . Robot Hit Streak 12 | 5 12 1 Robot Miss Streak 4 | 1 4 . Penetration Max . | . . . Secondary Targets . | . . . Shots Hit Robots 35 | 11 23 1 Core Hits 14 | 3 11 . Critical Kills . | . . . Critical Parts Destroyed . | . . . Critical Strikes . | . . . Melee Attacks . | . . . Impact . | . . . Slashing . | . . . Piercing . | . . . Sneak Attacks . | . . . Combat Hostiles . | . . . Follow-up Attacks . | . . . Damage Inflicted 437 | 141 272 24 Guns 413 | 141 272 . Cannons . | . . . Explosions . | . . . Melee . | . . . Ramming . | . . . Kinetic 413 | 141 272 . Thermal 24 | . . 24 Explosive . | . . . Electromagnetic . | . . . Impact . | . . . Slashing . | . . . Piercing . | . . . Highest Corruption . | . . . Average Corruption . | . . . Corruption Purged . | . . . Corruption Blocked . | . . . Overload Shots . | . . . Overflow Damage . | . . . Projectiles . | . . . Explosions . | . . . Melee . | . . . Knockbacks . | . . . Impact . | . . . Kinetic . | . . . Secondary . | . . . Self-Inflicted Damage . | . . . Shots . | . . . Rammed . | . . . Targets Rammed . | . . . Kicked . | . . . Crushed . | . . . Highest Temperature 80 | . 80 . Average Temperature 17 | . 17 . Received Heat Transfer 246 | . 57 189 Siege Activations . | . . . Martial Activations . | . . . Shielding Activations . | . . . Robots Disrupted . | . . . Combat Hostiles . | . . . Robots Corrupted . | . . . Combat Hostiles . | . . . Parts Fried . | . . . Impact Corruptions . | . . . Robots Melted . | . . . Combat Hostiles . | . . . Parts Melted . | . . . Heat Transferred 50 | . . 50 Parts Sabotaged . | . . . Parts Stolen . | . . . Parts Stripped . | . . . Power Chain Reactions . | . . . Alert | -11 -10 -10 ------- Run | Yrd Mat Sub Maximum Alert Level . | . . . Low Security (%) 100 | 100 100 . Level 1 . | . . . Level 2 . | . . . Level 3 . | . . . Level 4 . | . . . Level 5 . | . . . High Security . | . . . Max Security . | . . . Peak Influence 42 | 5 42 . Initial . | . . . Average 1 | . 2 . Influence Increases 161 | 10 136 15 Destroy 0b10 Robot/C 40 | . 40 . Destroy 0b10 Robot/NC 30 | 10 20 . Destroy Leader 28 | . 28 . Successful Hack 32 | . 32 . Destroy Structure 16 | . 16 . Lose Combat Pursuer 15 | . . 15 Influence Decreases 161 | 10 136 15 Time Decay 161 | 10 136 15 Squads Dispatched 4 | . 4 . Investigation 1 | . 1 . Extermination . | . . . Reinforcement 3 | . 3 . Assault . | . . . Garrison . | . . . Intercept . | . . . Searches Triggered . | . . . Construction Impeded . | . . . Haulers Reinforced . | . . . Active Scanning Responses . | . . . Cargo Convoy Interrupts . | . . . Stealth | -11 -10 -10 --------- Run | Yrd Mat Sub Distress Signals 5 | . 5 . Communications Jammed . | . . . Distress Signals . | . . . Times Spotted 14 | . 10 4 Peak Tracking Total 3 | . 2 3 Tactical Retreats 1 | . . 1 Traps | -11 -10 -10 ------- Run | Yrd Mat Sub Traps Triggered . | . . . Indirectly . | . . . Trap Hack Attempts . | . . . Triggered . | . . . Disarmed . | . . . Reprogrammed . | . . . Reused . | . . . Traps Extracted . | . . . Installed . | . . . Triggered . | . . . Machines | -11 -10 -10 ---------- Run | Yrd Mat Sub Machines Disabled . | . . . Max in Single Turn . | . . . Machines Repaired . | . . . Machines Dismantled . | . . . Machines Sabotaged . | . . . Overloaded Fab Kills . | . . . Hacking | -11 -10 -10 --------- Run | Yrd Mat Sub Machines Accessed 6 | . 6 . Terminals 5 | . 5 . Fabricators . | . . . Repair Stations . | . . . Recycling Units 1 | . 1 . Scanalyzers . | . . . Garrison Access . | . . . Total Hacks 15 | . 15 . Successful 7 | . 7 . Failed 8 | . 8 . Catastrophic 2 | . 2 . Database Lockouts . | . . . Manual 1 | . 1 . Terminals 11 | . 11 . Fabricators . | . . . Repair Stations . | . . . Recycling Units 4 | . 4 . Scanalyzers . | . . . Garrison Access . | . . . Terminal Hacks 5 | . 5 . Prototype ID Bank 1 | . 1 . Branch Access Points 1 | . 1 . Emergency Access Points 1 | . 1 . Recall Investigation 1 | . 1 . Recall Reinforcements 1 | . 1 . Fabricator Hacks . | . . . Repair Station Hacks . | . . . Recycling Unit Hacks 2 | . 2 . Report Inventory 1 | . 1 . Retrieve Components 1 | . 1 . Scanalyzer . | . . . Garrison Access Hacks . | . . . Unauthorized Hacks . | . . . Terminals . | . . . Fabricators . | . . . Repair Stations . | . . . Recycling Units . | . . . Scanalyzers . | . . . Garrison Access . | . . . Data Cores Recovered . | . . . Used . | . . . Hacking Detections 3 | . 3 . Full Trace Events 1 | . 1 . Feedback Events . | . . . Feedback Blocked . | . . . Robot Schematics Acquired . | . . . Robots Built . | . . . Authchips . | . . . Time . | . . . Total Robot Build Rating . | . . . Part Schematics Acquired . | . . . Parts Built . | . . . Authchips . | . . . Time . | . . . Total Part Build Rating . | . . . Part Studies Acquired . | . . . Parts Repaired . | . . . Time . | . . . Parts Recycled . | . . . Recycled Matter . | . . . Retrieved Matter . | . . . Retrieved Components 2 | . 2 . Parts Scanalyzed . | . . . Part Schematics Acquired . | . . . Parts Damaged . | . . . Bothacking | -11 -10 -10 ------------ Run | Yrd Mat Sub Used RIF Installer . | . . . Robots Hacked . | . . . Non-combat . | . . . Combat . | . . . Robot Hacks Applied . | . . . Relay Couplers Released . | . . . Fabnet Peak Effective % . | . . . Robots Rewired . | . . . Allies Hacked . | . . . Hacks Repelled . | . . . Allies | -11 -10 -10 -------- Run | Yrd Mat Sub Total Allies . | . . . Largest Group . | . . . Highest-Rated Group . | . . . Highest-Rated Ally . | . . . Total Orders . | . . . Ally Attacks . | . . . Total Damage . | . . . Kills . | . . . Allies Corrupted . | . . . Allies Melted . | . . . Intel | -11 -10 -10 ------- Run | Yrd Mat Sub Active Infowar (turns) 2404 | 638 1504 262 Seismic 2404 | 638 1504 262 Robot Analysis Total . | . . . Derelict Logs Recovered 1 | . . 1 Drone Launches . | . . . Drone Recoveries . | . . . Exploration | -11 -10 -10 ------------- Run | Yrd Mat Sub Turns Passed 2494 | 728 1504 262 Spaces Moved 1248 | 292 814 142 Core 5 | 3 . 2 Treads 1239 | 289 814 136 Legs 4 | . . 4 Wheels . | . . . Hover . | . . . Flight . | . . . Fastest Speed 50 | 50 160 160 Average Speed 160 | 158 160 167 Slowest Speed 450 | 160 160 450 Overloaded Moves . | . . . Propulsion Burnouts . | . . . Robots Hopped . | . . . Potential Cave-ins . | . . . Cave-ins Triggered . | . . . Exploration Rate (%) 42 | 20 92 15 Regions Visited 2 Branch Regions 1 Pre-discovered Areas . | . . . Known Exits Taken . | . . . Unknown Exits Taken 2 | 1 1 . Scrap Searched . | . . . Spaces Dug 17 | . 17 . Terrain Destroyed 17 | . 17 . Melee . | . . . Projectile 17 | . 17 . AOE . | . . . Terrain Rammed . | . . . Walls Destroyed . | . . . Machines Disabled . | . . . Actions | -11 -10 -10 --------- Run | Yrd Mat Sub Total 1625 | 537 922 166 Wait 270 | 218 37 15 Move 1246 | 291 813 142 Hop . | . . . Pick Up 22 | 6 14 2 Fast Attach 6 | 6 . . Attach 5 | 1 1 3 Detach . | . . . Swap 4 | . 3 1 Drop 9 | . 7 2 Fire 63 | 15 47 1 Melee . | . . . Ram . | . . . Kick . | . . . Crush . | . . . Escape Stasis . | . . . Rewire . | . . . Trap . | . . . Miscellaneous . | . . . Route ------- -11/Scrapyard -10/Materials (discovered 4 exits: [*Mat x2] / *Min / [*Sub]) -10/Subcaves History --------- Turn | Location | Event 20 | -11/Scrapyard | Discovered new exit (range 16) 729 | -11/Scrapyard | Entered Materials 730 | -10/Materials | Build established: Mutant 730 | -10/Materials | Met a group of wandering Federalists 1012 | -10/Materials | Discovered new exit (range 16) 1326 | -10/Materials | Discovered new exit (range 8) 1406 | -10/Materials | Identified exit to Mines 2082 | -10/Materials | Discovered new exit (range 3) 2221 | -10/Materials | Discovered new exit (range 7) 2233 | -10/Materials | Entered Subcaves 2357 | -10/Subcaves | Learned Materials trap positions 2369 | -10/Subcaves | A swath of the cavern ceiling suddenly collapsed 2447 | -10/Subcaves | A Subdweller sparked back to life 2447 | -10/Subcaves | A Subdweller sparked back to life 2447 | -10/Subcaves | A Subdweller sparked back to life 2465 | -10/Subcaves | Core integrity fell below 50% 2492 | -10/Subcaves | Core integrity fell below 20% 2495 | -10/Subcaves | Destroyed by W4-AUV(R) with Subdweller Beam Cannon Last Messages --------------- collapses. Acquired Scrap Shield Fragment. Dropped Scrap Shield Fragment. Acquired Scrap Shield Fragment. W4-AUV(R) creaks and sparks as it begins to move. FM-TP7(R) creaks and sparks as it begins to move. IM-G16(R) creaks and sparks as it begins to move. W4-AUV(R) affixes Scrap Shield Fragment to Scrap Shield. Mining Laser destroyed. Dropped Grenade Launcher. Subatomizers dissect the Grenade Launcher. Lgt. Treads destroyed. Subatomizers dissect the Grenade Launcher. Lgt. Treads destroyed. IM-G16(R) suffers critical hit (Meltdown). Ion Engine destroyed. Map ----- +----------------------------------------------------+ | ?????????????????????????????????????????????????? | | ?????????????????????????????????????????????????? | | ?????????????????????????????????????????????????? | | ?????????????????????????????????????????????????? | | ?????????????????????????????????????????????????? | | ?????????????????????????????????????????????????? | | ?????????????????????????????????????????????????? | | ?????????????????????????????????????????##??????? | | ????????????????????????????????????????## ####??? | | ??????????????????????????????????????? "####? | | ??????????????????????????????????????? """### | | ????????????????????????????????????? """"# | | ????????????????????????????????????? ""## | | ???????????????? ???????????????????? ###"# | | ?????????????? ##??????????????????? #"""# | | ?????????????? ???????????????????# # ?##"" | | ?????????????? ??##???????????"????##"##"## # | | ???????????????# ?# #????????##"?????#""##?### | | ????????????????# ## ####???## ##????###"#### | | ???????????????## ???? #????# " | | ??????????????## ?????# #?????# # | | ??????????????# ?????# ##????# # | | ????????????????? ####### ##??## # | | ????????????????????# ## ##?# | | ????????????????????# R #### | | ????????????????????# @ R #?# | | ???????????????????# # ## # ; # ### ## ## | | ???????????????????# ######## " ## ##### | | ???????????????????# ???????# " # #?## | | ???????????????????# #????????# ]" ### | | ???????????????????# #?????????#"&%" # ## | | ???????????????????##??????????# * # ## | | ???????????????????????????????###" ### | | ??????????????????????????????????### ## #?### | | ????????????????????????????????????###?##???## | | ??????????????????????????????????????????????# # | | ??????????????????????????????????????????????## # | | ???????????????????????????????????????????????### | | ?????????????????????????????????????????????????? | | ?????????????????????????????????????????????????? | | ?????????????????????????????????????????????????? | | ?????????????????????????????????????????????????? | | ?????????????????????????????????????????????????? | | ?????????????????????????????????????????????????? | | ?????????????????????????????????????????????????? | | ?????????????????????????????????????????????????? | | ?????????????????????????????????????????????????? | | ?????????????????????????????????????????????????? | | ?????????????????????????????????????????????????? | | ?????????????????????????????????????????????????? | +----------------------------------------------------+ Best States ------------- Heat Dissipation 25 Energy Generation 10 Energy Capacity 250 Matter Stores 300 Matter Capacity 300 Sight Range 16 Terrain Scan Density 10 Evasion (%) 40 Recoil Reduction 2 Item Schematics ----------------- None Robot Schematics ------------------ None Fabricated ------------ Nothing Repaired ---------- Nothing Studied --------- None Alien Tech Used ----------------- None Achievements -------------- GoHome() Loot Pinata Challenges ------------ None Game ------ Seed TeslaAblativeNukerbomber Manual? 0 Play Time 00:27:26 Cumulative 9.0 hours Start 2025.12.26 @ 16:18:49 End 2025.12.26 @ 23:53:52 Sessions 3 Manual Loads 0 Difficulty Rogue Special Mode None Game No. 8 Rogue 8 Adventurer 0 Explorer 0 Win Type - Total 0 Types 0/0/0/0/0/0/0/0/0/0 Lore% 7 Gallery% 8 Achievement% 9 Wizard Run 0 Options --------- Layout 1 ASCII 0 Keyboard 0 Movement Mouse Keybinds 0 Fullscreen 1 Font 32/CogWide Map View 25x17 Zoom Use 65% Tactical HUD 0 Map Filters NONE Filters NONE Steam 1 RUN: b6c1bf38-0e5e-4995-a657-7382d431e0af